fUST/lending_fUST_20260101
["ID","MTS","AMOUNT","RATE_DAILY","PERIOD"]
[400237921,1767211763205,-2025.42469788,0.00012288,2]
[400237922,1767211763224,-2025.42469788,0.00012288,2]
[400237923,1767211763244,-2025.42469788,0.00012288,2]
[400237924,1767211763263,-2025.42469788,0.00012288,2]
[400237925,1767211763282,-2025.42469788,0.00012288,2]
[400237926,1767211763303,-2025.42469788,0.00012288,2]
[400237927,1767211763324,-2025.42469788,0.00012288,2]
[400237928,1767211763344,-2025.42469788,0.00012288,2]
[400237929,1767211763365,-2025.42469788,0.00012288,2]
[400237930,1767211763386,-2025.42469788,0.00012288,2]
[400237931,1767211763408,-2025.42469788,0.00012288,2]
[400237932,1767211763429,-2025.42469788,0.00012288,2]
[400237933,1767211763450,-2025.42469788,0.00012288,2]
[400237934,1767211763473,-2025.42469788,0.00012288,2]
[400237935,1767211763495,-2025.42469788,0.00012288,2]
[400237936,1767211763515,-858.77210052,0.00012288,2]
[400237937,1767211766162,-2226.70835586,0.00012165,2]
[400237938,1767211766184,-1166.65259736,0.00012288,2]
[400237939,1767211766207,-2025.42469788,0.00012288,2]
[400237940,1767211766229,-2025.42469788,0.00012288,2]
[400237941,1767211766248,-2025.42469788,0.00012288,2]
[400237942,1767211766269,-2025.42469788,0.00012288,2]
[400237943,1767211766290,-2025.42469788,0.00012288,2]
[400237944,1767211766312,-2025.42469788,0.00012288,2]
[400237945,1767211766332,-2025.42469788,0.00012288,2]
[400237946,1767211766352,-2025.42469788,0.00012288,2]
[400237947,1767211766373,-2025.42469788,0.00012288,2]
[400237948,1767211766393,-2025.42469788,0.00012288,2]
[400237949,1767211766415,-2025.42469788,0.00012288,2]
[400237950,1767211766436,-2025.42469788,0.00012288,2]
[400237951,1767211766456,-2025.42469788,0.00012288,2]
[400237952,1767211766478,-2025.42469788,0.00012288,2]
[400237953,1767211766498,-2025.42469788,0.00012288,2]
[400237954,1767211766519,-2025.42469788,0.00012288,2]
[400237955,1767211766542,-2025.42469788,0.00012288,2]
[400237956,1767211766562,-2025.4246979,0.00012288,2]
[400237957,1767211766583,-2025.4246979,0.00012288,2]
[400237958,1767211766609,-1553.35998472,0.00012288,2]
[400238003,1767211832365,-278.36272929,0.0001219,2]
[400238004,1767211832376,-270.00649389,0.0001219,2]
[400238006,1767211832420,-43.63077682,0.0001219,2]
[400238007,1767211832430,-373.53425736,0.0001219,2]
[400238008,1767211832443,-1078.08916142,0.0001219,2]
[400238032,1767211838522,-1673.37938638,0.0001219,2]
[400238034,1767211838534,-1624.84871271,0.0001219,2]
[400238036,1767211838546,-1013.0921041,0.0001219,2]
[400238038,1767211838556,-300.0,0.00012288,2]
[400238039,1767211838566,-300.0,0.00012288,2]
[400238040,1767211838576,-274.95327504,0.00012289,2]
[400238041,1767211838585,-500.0,0.00013273,2]
[400238042,1767211838596,-1036.612644,0.00013699,2]
[400238043,1767211838606,-1000.0,0.00013699,2]
[400238044,1767211838616,-500.0,0.00013699,2]
[400238045,1767211838626,-250.0,0.00013699,2]
[400238046,1767211838637,-506.51422642,0.00013699,2]
[400238047,1767211838647,-500.0,0.00014247,2]
[400238048,1767211838659,-324.44486454,0.00014289,2]
[400238049,1767211838668,-251.86454177,0.00016074,2]
[400238050,1767211838677,-373.93645405,0.00016289,2]
[400238051,1767211838686,-500.0,0.00016437,2]
[400238052,1767211838695,-356.79567851,0.00016437,2]
[400238053,1767211838704,-500.0,0.00016437,2]
[400238054,1767211838714,-500.0,0.00016437,2]
[400238055,1767211838724,-500.0,0.00016437,2]
[400238056,1767211838733,-500.0,0.00016437,2]
[400238057,1767211838742,-500.0,0.00016437,2]
[400238058,1767211838751,-500.0,0.00016437,2]
[400238059,1767211838761,-500.0,0.00016437,2]
[400238060,1767211838770,-500.0,0.00016437,2]
[400238061,1767211838779,-500.0,0.00016437,2]
[400238062,1767211838788,-500.0,0.00016437,2]
[400238063,1767211838798,-500.0,0.00016437,2]
[400238064,1767211838807,-287.06208176,0.00016437,2]
[400238065,1767211838816,-500.0,0.00016437,2]
[400238066,1767211838825,-500.0,0.00016437,2]
[400238067,1767211838834,-500.0,0.00016437,2]
[400238068,1767211838844,-500.0,0.00016437,2]
[400238069,1767211838855,-500.0,0.00016437,2]
[400238070,1767211838864,-500.0,0.00016437,2]
[400238071,1767211838873,-500.0,0.00016437,2]
[400238072,1767211838883,-500.0,0.00016437,2]
[400238073,1767211838893,-500.0,0.00016437,2]
[400238074,1767211838903,-500.0,0.00016437,2]
[400238075,1767211838913,-500.0,0.00016437,2]
[400238076,1767211838923,-500.0,0.00016437,2]
[400238077,1767211838933,-500.0,0.00016437,2]
[400238078,1767211838942,-500.0,0.00016437,2]
[400238079,1767211838952,-500.0,0.00016437,2]
[400238080,1767211838962,-500.0,0.00016438,2]
[400238081,1767211838971,-500.0,0.00016438,2]
[400238082,1767211838981,-500.0,0.00016438,2]
[400238083,1767211838991,-500.0,0.00016438,2]
[400238084,1767211839000,-500.0,0.00016438,2]
[400238085,1767211839009,-500.0,0.00016438,2]
[400238086,1767211839018,-500.0,0.00016438,2]
[400238087,1767211839027,-500.0,0.00016438,2]
[400238088,1767211839036,-500.0,0.00016438,2]
[400238089,1767211839045,-500.0,0.00016438,2]
[400238090,1767211839191,-500.0,0.00016438,2]
[400238091,1767211839202,-363.98329015,0.00016438,2]
[400238092,1767211839212,-500.0,0.00016438,2]
[400238093,1767211839222,-500.0,0.00016438,2]
[400238094,1767211839232,-500.0,0.00016438,2]
[400238095,1767211839242,-500.0,0.00016438,2]
[400238096,1767211839252,-500.0,0.00016438,2]
[400238097,1767211839262,-500.0,0.00016438,2]
[400238098,1767211839272,-500.0,0.00016438,2]
[400238099,1767211839282,-500.0,0.00016438,2]
[400238100,1767211839292,-500.0,0.00016438,2]
[400238101,1767211839302,-500.0,0.00016438,2]
[400238102,1767211839312,-500.0,0.00016438,2]
[400238103,1767211839321,-500.0,0.00016438,2]
[400238104,1767211839330,-500.0,0.00016438,2]
[400238105,1767211839341,-500.0,0.00016438,2]
[400238106,1767211839352,-500.0,0.00016438,2]
[400238107,1767211839362,-500.0,0.00016438,2]
[400238108,1767211839372,-500.0,0.00016438,2]
[400238109,1767211839381,-500.0,0.00016438,2]
[400238110,1767211839392,-500.0,0.00016438,2]
[400238111,1767211839401,-500.0,0.00016438,2]
[400238112,1767211839411,-192.8,0.00018057,2]
[400238113,1767211839420,-1041.66666667,0.00018205,2]
[400238114,1767211839431,-423.42804356,0.00018289,2]
[400238115,1767211839441,-208.17276456,0.00019666,2]
[400238116,1767211839451,-159.88,0.000197,2]
[400238117,1767211839461,-165.23,0.000197,2]
[400238118,1767211839470,-192.8,0.00019816,2]
[400238119,1767211839480,-1036.612644,0.00020187,2]
[400238120,1767211839490,-472.91963306,0.00020289,2]
[400238121,1767211839499,-192.8,0.00021574,2]
[400238122,1767211839509,-500.0,0.00021916,2]
[400238123,1767211839518,-500.0,0.00021916,2]
[400238124,1767211839527,-500.0,0.00021916,2]
[400238125,1767211839536,-500.0,0.00021916,2]
[400238126,1767211839546,-637.65798448,0.00021916,2]
[400238127,1767211839555,-500.0,0.00021916,2]
[400238128,1767211839565,-500.0,0.00021916,2]
[400238129,1767211839574,-500.0,0.00021916,2]
[400238130,1767211839583,-500.0,0.00021916,2]
[400238131,1767211839593,-500.0,0.00021916,2]
[400238132,1767211839603,-500.0,0.00021916,2]
[400238133,1767211839613,-500.0,0.00021916,2]
[400238134,1767211839623,-500.0,0.00021916,2]
[400238135,1767211839632,-500.0,0.00021916,2]
[400238136,1767211839646,-500.0,0.00021916,2]
[400238137,1767211839656,-381.82319276,0.00021916,2]
[400238138,1767211839665,-500.0,0.00021916,2]
[400238139,1767211839675,-510.3,0.00021917,2]
[400238140,1767211839684,-1121.27,0.00021917,2]
[400238141,1767211839694,-500.0,0.00021917,2]
[400238142,1767211839703,-500.0,0.00021917,2]
[400238143,1767211839713,-1242.62678619,0.00021917,2]
[400238144,1767211839723,-1245.76,0.00021917,2]
[400238145,1767211839732,-500.0,0.00021917,2]
[400238146,1767211839742,-194.49007806,0.00021917,2]
[400238147,1767211839751,-488.41846043,0.00021917,2]
[400238148,1767211839760,-500.0,0.00021917,2]
[400238149,1767211839770,-500.0,0.00021917,2]
[400238150,1767211839779,-620.58,0.00021917,2]
[400238151,1767211839789,-500.0,0.00021917,2]
[400238152,1767211839799,-500.0,0.00021917,2]
[400238153,1767211839808,-500.0,0.00021917,2]
[400238154,1767211839818,-5574.93,0.00021917,2]
[400238155,1767211839827,-500.0,0.00021917,2]
[400238156,1767211839837,-647.1,0.00021917,2]
[400238157,1767211839846,-500.0,0.00021917,2]
[400238158,1767211839855,-500.0,0.00021917,2]
[400238159,1767211839866,-500.0,0.00021917,2]
[400238160,1767211839875,-1000.0,0.00021917,2]
[400238161,1767211839885,-1927.89,0.00021917,2]
[400238162,1767211839895,-500.0,0.00021917,2]
[400238163,1767211839904,-726.9,0.00021917,2]
[400238164,1767211839914,-584.15,0.00021917,2]
[400238165,1767211839923,-638.06,0.00021917,2]
[400238166,1767211839932,-500.0,0.00021917,2]
[400238167,1767211839942,-500.0,0.00021917,2]
[400238168,1767211839951,-500.0,0.00021917,2]
[400238169,1767211839960,-686.07,0.00021917,2]
[400238170,1767211839970,-500.0,0.00021917,2]
[400238171,1767211839980,-500.0,0.00021917,2]
[400238172,1767211839989,-1878.54,0.00021917,2]
[400238173,1767211839999,-230.9,0.0002199,10]
[400238174,1767211840009,-176.02,0.00022,7]
[400238175,1767211840019,-337.79,0.00022,2]
[400238176,1767211840029,-1102.88,0.00022,14]
[400238177,1767211840039,-277.08,0.00022035,10]
[400238178,1767211840048,-192.42,0.00022181,10]
[400238179,1767211840058,-510.3,0.00022191,2]
[400238180,1767211840068,-1121.27,0.00022191,2]
[400238181,1767211840077,-500.0,0.00022191,2]
[400238182,1767211840087,-500.0,0.00022191,2]
[400238183,1767211840097,-1242.62678619,0.00022191,2]
[400238184,1767211840107,-1245.76,0.00022191,2]
[400238185,1767211840116,-500.0,0.00022191,2]
[400238186,1767211840126,-500.0,0.00022191,2]
[400238187,1767211840135,-581.17889985,0.00022191,2]
[400238188,1767211840145,-620.58,0.00022191,2]
[400238189,1767211840154,-500.0,0.00022191,2]
[400238190,1767211840163,-500.0,0.00022191,2]
[400238191,1767211840173,-500.0,0.00022191,2]
[400238192,1767211840182,-5574.93,0.00022191,2]
[400238193,1767211840191,-647.1,0.00022191,2]
[400238194,1767211840201,-500.0,0.00022191,2]
[400238196,1767211840211,-500.0,0.00022191,2]
[400238197,1767211840220,-500.0,0.00022191,2]
[400238198,1767211840229,-1000.0,0.00022191,2]
[400238199,1767211840239,-1927.89,0.00022191,2]
[400238200,1767211840248,-500.0,0.00022191,2]
[400238201,1767211840257,-726.9,0.00022191,2]
[400238202,1767211840267,-584.15,0.00022191,2]
[400238203,1767211840277,-638.06,0.00022191,2]
[400238204,1767211840286,-500.0,0.00022191,2]
[400238205,1767211840296,-500.0,0.00022191,2]
[400238206,1767211840306,-500.0,0.00022191,2]
[400238207,1767211840315,-686.07,0.00022191,2]
[400238208,1767211840324,-286.68717992,0.00022191,2]
[400238209,1767211840334,-1878.54,0.00022191,2]
[400238210,1767211840343,-522.41122257,0.00022289,2]
[400238211,1767211840353,-510.3,0.00022465,2]
[400238212,1767211840363,-1121.27,0.00022465,2]
[400238213,1767211840372,-500.0,0.00022465,2]
[400238214,1767211840382,-500.0,0.00022465,2]
[400238215,1767211840392,-1242.62678619,0.00022465,2]
[400238216,1767211840401,-1245.76,0.00022465,2]
[400238217,1767211840411,-500.0,0.00022465,2]
[400238218,1767211840421,-500.0,0.00022465,2]
[400238219,1767211840430,-620.58,0.00022465,2]
[400238220,1767211840440,-500.0,0.00022465,2]
[400238221,1767211840450,-500.0,0.00022465,2]
[400238222,1767211840460,-500.0,0.00022465,2]
[400238223,1767211840470,-5574.93,0.00022465,2]
[400238224,1767211840479,-647.1,0.00022465,2]
[400238225,1767211840489,-500.0,0.00022465,2]
[400238226,1767211840499,-500.0,0.00022465,2]
[400238227,1767211840508,-500.0,0.00022465,2]
[400238228,1767211840518,-1000.0,0.00022465,2]
[400238229,1767211840527,-1927.89,0.00022465,2]
[400238230,1767211840536,-500.0,0.00022465,2]
[400238231,1767211840546,-726.9,0.00022465,2]
[400238232,1767211840555,-584.15,0.00022465,2]
[400238233,1767211840564,-638.06,0.00022465,2]
[400238234,1767211840575,-500.0,0.00022465,2]
[400238235,1767211840584,-500.0,0.00022465,2]
[400238236,1767211840593,-500.0,0.00022465,2]
[400238237,1767211840603,-686.07,0.00022465,2]
[400238238,1767211840612,-1878.54,0.00022465,2]
[400238239,1767211840622,-212.0,0.00022521,7]
[400238240,1767211840631,-1264.96083112,0.00022639,2]
[400238241,1767211840642,-510.3,0.00022739,2]
[400238242,1767211840654,-1121.27,0.00022739,2]
[400238243,1767211840663,-574.21869989,0.00022739,2]
[400238244,1767211840673,-1242.62678619,0.00022739,2]
[400238245,1767211840683,-1245.76,0.00022739,2]
[400238246,1767211840696,-500.0,0.00022739,2]
[400238247,1767211840705,-549.83481305,0.00022739,2]
[400238248,1767211840714,-620.58,0.00022739,2]
[400238249,1767211840725,-500.0,0.00022739,2]
[400238250,1767211840734,-500.0,0.00022739,2]
[400238251,1767211840744,-500.0,0.00022739,2]
[400238252,1767211840753,-5574.93,0.00022739,2]
[400238253,1767211840762,-647.1,0.00022739,2]
[400238254,1767211840772,-500.0,0.00022739,2]
[400238255,1767211840781,-500.0,0.00022739,2]
[400238256,1767211840790,-500.0,0.00022739,2]
[400238257,1767211840799,-1000.0,0.00022739,2]
[400238258,1767211840808,-1927.89,0.00022739,2]
[400238259,1767211840817,-500.0,0.00022739,2]
[400238261,1767211840827,-726.9,0.00022739,2]
[400238262,1767211840836,-584.15,0.00022739,2]
[400238264,1767211840846,-638.06,0.00022739,2]
[400238266,1767211840856,-500.0,0.00022739,2]
[400238267,1767211840865,-500.0,0.00022739,2]
[400238269,1767211840875,-500.0,0.00022739,2]
[400238271,1767211840884,-686.07,0.00022739,2]
[400238273,1767211840893,-1878.54,0.00022739,2]
[400238275,1767211840903,-510.3,0.00023013,2]
[400238277,1767211840912,-1121.27,0.00023013,2]
[400238279,1767211840922,-1242.62678619,0.00023013,2]
[400238281,1767211840931,-1245.76,0.00023013,2]
[400238283,1767211840940,-500.0,0.00023013,2]
[400238285,1767211840949,-620.58,0.00023013,2]
[400238287,1767211840958,-500.0,0.00023013,2]
[400238289,1767211840968,-500.0,0.00023013,2]
[400238291,1767211840977,-5574.93,0.00023013,2]
[400238293,1767211840987,-647.1,0.00023013,2]
[400238295,1767211840996,-500.0,0.00023013,2]
[400238297,1767211841005,-500.0,0.00023013,2]
[400238299,1767211841014,-500.0,0.00023013,2]
[400238301,1767211841023,-999.99999997,0.00023013,2]
[400238303,1767211841032,-1927.89,0.00023013,2]
[400238305,1767211841041,-500.0,0.00023013,2]
[400238307,1767211841050,-726.9,0.00023013,2]
[400238309,1767211841059,-584.15,0.00023013,2]
[400238311,1767211841068,-638.06,0.00023013,2]
[400238313,1767211841077,-500.0,0.00023013,2]
[400238315,1767211841086,-500.0,0.00023013,2]
[400238317,1767211841095,-210.73467929,0.00023013,2]
[400238319,1767211841104,-686.07,0.00023013,2]
[400238320,1767211841114,-1878.54,0.00023013,2]
[400238322,1767211841123,-510.3,0.00023287,2]
[400238324,1767211841133,-1121.27,0.00023287,2]
[400238326,1767211841142,-1242.62678619,0.00023287,2]
[400238328,1767211841151,-1245.76,0.00023287,2]
[400238330,1767211841160,-500.0,0.00023287,2]
[400238332,1767211841170,-620.58,0.00023287,2]
[400238334,1767211841179,-500.0,0.00023287,2]
[400238336,1767211841188,-500.0,0.00023287,2]
[400238338,1767211841197,-5574.93,0.00023287,2]
[400238340,1767211841206,-647.1,0.00023287,2]
[400238342,1767211841216,-500.0,0.00023287,2]
[400238344,1767211841224,-500.0,0.00023287,2]
[400238346,1767211841234,-500.0,0.00023287,2]
[400238348,1767211841243,-1927.89,0.00023287,2]
[400238350,1767211841252,-500.0,0.00023287,2]
[400238352,1767211841260,-726.9,0.00023287,2]
[400238354,1767211841269,-584.15,0.00023287,2]
[400238356,1767211841278,-638.06,0.00023287,2]
[400238358,1767211841288,-500.0,0.00023287,2]
[400238360,1767211841297,-500.0,0.00023287,2]
[400238362,1767211841307,-686.07,0.00023287,2]
[400238364,1767211841317,-1878.54,0.00023287,2]
[400238365,1767211841326,-192.8,0.00023333,2]
[400238367,1767211841335,-510.3,0.00023561,2]
[400238369,1767211841344,-1121.27,0.00023561,2]
[400238371,1767211841354,-1242.62678619,0.00023561,2]
[400238373,1767211841363,-1245.76,0.00023561,2]
[400238375,1767211841372,-500.0,0.00023561,2]
[400238377,1767211841382,-620.58,0.00023561,2]
[400238379,1767211841391,-500.0,0.00023561,2]
[400238381,1767211841401,-500.0,0.00023561,2]
[400238383,1767211841410,-5574.93,0.00023561,2]
[400238385,1767211841420,-647.1,0.00023561,2]
[400238387,1767211841429,-500.0,0.00023561,2]
[400238389,1767211841439,-500.0,0.00023561,2]
[400238391,1767211841448,-500.0,0.00023561,2]
[400238393,1767211841458,-1927.89,0.00023561,2]
[400238395,1767211841467,-500.0,0.00023561,2]
[400238397,1767211841477,-726.9,0.00023561,2]
[400238399,1767211841486,-584.15,0.00023561,2]
[400238401,1767211841496,-638.06,0.00023561,2]
[400238403,1767211841505,-500.0,0.00023561,2]
[400238405,1767211841514,-500.0,0.00023561,2]
[400238407,1767211841523,-686.07,0.00023561,2]
[400238409,1767211841533,-1878.54,0.00023561,2]
[400238411,1767211841542,-510.3,0.00023835,2]
[400238413,1767211841551,-1121.27,0.00023835,2]
[400238415,1767211841560,-1242.62678619,0.00023835,2]
[400238417,1767211841569,-1245.76,0.00023835,2]
[400238419,1767211841578,-500.0,0.00023835,2]
[400238421,1767211841587,-620.58,0.00023835,2]
[400238423,1767211841596,-500.0,0.00023835,2]
[400238425,1767211841606,-500.0,0.00023835,2]
[400238427,1767211841615,-200.90977335,0.00023835,2]
[400238428,1767211841624,-5574.93,0.00023835,2]
[400238430,1767211841633,-647.1,0.00023835,2]
[400238432,1767211841645,-500.0,0.00023835,2]
[400238434,1767211841655,-500.0,0.00023835,2]
[400238436,1767211841666,-500.0,0.00023835,2]
[400238438,1767211841675,-1927.89,0.00023835,2]
[400238440,1767211841684,-500.0,0.00023835,2]
[400238442,1767211841693,-726.9,0.00023835,2]
[400238444,1767211841703,-584.15,0.00023835,2]
[400238446,1767211841712,-638.06,0.00023835,2]
[400238448,1767211841721,-500.0,0.00023835,2]
[400238450,1767211841730,-500.0,0.00023835,2]
[400238452,1767211841739,-686.07,0.00023835,2]
[400238454,1767211841748,-1878.54,0.00023835,2]
[400238456,1767211841758,-100000.0,0.0002399,2]
[400238458,1767211841767,-1264.96083111,0.00024004,2]
[400238460,1767211841776,-510.3,0.00024109,2]
[400238462,1767211841786,-1121.27,0.00024109,2]
[400238463,1767211841795,-1242.62678619,0.00024109,2]
[400238465,1767211841805,-1245.76,0.00024109,2]
[400238467,1767211841814,-500.0,0.00024109,2]
[400238469,1767211841823,-620.58,0.00024109,2]
[400238471,1767211841832,-500.0,0.00024109,2]
[400238473,1767211841841,-500.0,0.00024109,2]
[400238475,1767211841851,-5574.93,0.00024109,2]
[400238477,1767211841860,-647.1,0.00024109,2]
[400238479,1767211841870,-500.0,0.00024109,2]
[400238481,1767211841879,-500.0,0.00024109,2]
[400238483,1767211841889,-500.0,0.00024109,2]
[400238485,1767211841898,-1927.89,0.00024109,2]
[400238487,1767211841907,-500.0,0.00024109,2]
[400238489,1767211841916,-726.9,0.00024109,2]
[400238491,1767211841926,-584.15,0.00024109,2]
[400238493,1767211841935,-638.06,0.00024109,2]
[400238495,1767211841944,-500.0,0.00024109,2]
[400238497,1767211841953,-686.07,0.00024109,2]
[400238499,1767211841962,-1878.54,0.00024109,2]
[400238500,1767211841971,-165.0,0.00024164,12]
[400238502,1767211841981,-571.90281208,0.00024289,2]
[400238504,1767211841990,-510.3,0.00024383,2]
[400238506,1767211841999,-1121.27,0.00024383,2]
[400238508,1767211842008,-1242.62678619,0.00024383,2]
[400238522,1767211842129,-1245.76,0.00024383,2]
[400238524,1767211842138,-500.0,0.00024383,2]
[400238526,1767211842147,-620.58,0.00024383,2]
[400238528,1767211842156,-500.0,0.00024383,2]
[400238530,1767211842165,-500.0,0.00024383,2]
[400238532,1767211842175,-5574.93,0.00024383,2]
[400238534,1767211842183,-647.1,0.00024383,2]
[400238536,1767211842193,-500.0,0.00024383,2]
[400238538,1767211842202,-500.0,0.00024383,2]
[400238540,1767211842211,-500.0,0.00024383,2]
[400238542,1767211842221,-1927.89,0.00024383,2]
[400238544,1767211842230,-500.0,0.00024383,2]
[400238546,1767211842239,-726.9,0.00024383,2]
[400238548,1767211842249,-584.15,0.00024383,2]
[400238550,1767211842258,-638.06,0.00024383,2]
[400238552,1767211842267,-500.0,0.00024383,2]
[400238554,1767211842276,-686.07,0.00024383,2]
[400238556,1767211842285,-1878.54,0.00024383,2]
[400238558,1767211842295,-10721.26,0.000244,2]
[400238560,1767211842306,-1102.88,0.000244,14]
[400238562,1767211842315,-510.3,0.00024657,2]
[400238564,1767211842324,-1121.27,0.00024657,2]
[400238566,1767211842333,-1242.62678619,0.00024657,2]
[400238568,1767211842343,-1245.76,0.00024657,2]
[400238570,1767211842352,-500.0,0.00024657,2]
[400238572,1767211842361,-620.58,0.00024657,2]
[400238574,1767211842370,-500.0,0.00024657,2]
[400238576,1767211842379,-500.0,0.00024657,2]
[400238578,1767211842388,-5574.93,0.00024657,2]
[400238580,1767211842398,-647.1,0.00024657,2]
[400238582,1767211842407,-500.0,0.00024657,2]
[400238584,1767211842416,-500.0,0.00024657,2]
[400238586,1767211842426,-500.0,0.00024657,2]
[400238587,1767211842435,-1927.89,0.00024657,2]
[400238589,1767211842444,-500.0,0.00024657,2]
[400238591,1767211842454,-726.9,0.00024657,2]
[400238593,1767211842464,-584.15,0.00024657,2]
[400238596,1767211842474,-638.06,0.00024657,2]
[400238598,1767211842484,-500.0,0.00024657,2]
[400238600,1767211842494,-686.07,0.00024657,2]
[400238602,1767211842503,-1878.54,0.00024657,2]
[400238604,1767211842512,-150.0,0.00024658,2]
[400238605,1767211842521,-329879.763389,0.000249,2]
[400238607,1767211842531,-20617.4852118,0.00024921,2]
[400238609,1767211842540,-510.3,0.00024931,2]
[400238611,1767211842549,-1121.27,0.00024931,2]
[400238613,1767211842558,-1242.62678619,0.00024931,2]
[400238615,1767211842567,-1245.76,0.00024931,2]
[400238617,1767211842576,-500.0,0.00024931,2]
[400238619,1767211842586,-620.58,0.00024931,2]
[400238621,1767211842595,-500.0,0.00024931,2]
[400238623,1767211842604,-500.0,0.00024931,2]
[400238625,1767211842612,-5574.93,0.00024931,2]
[400238627,1767211842622,-647.1,0.00024931,2]
[400238629,1767211842632,-500.0,0.00024931,2]
[400238631,1767211842641,-500.0,0.00024931,2]
[400238633,1767211842650,-500.0,0.00024931,2]
[400238635,1767211842663,-1927.89,0.00024931,2]
[400238637,1767211842672,-500.0,0.00024931,2]
[400238639,1767211842681,-726.9,0.00024931,2]
[400238641,1767211842690,-584.15,0.00024931,2]
[400238643,1767211842699,-638.06,0.00024931,2]
[400238645,1767211842709,-500.0,0.00024931,2]
[400238647,1767211842718,-686.07,0.00024931,2]
[400238649,1767211842728,-1878.54,0.00024931,2]
[400238651,1767211842737,-159.46396481,0.00025,2]
[400238652,1767211842746,-192.8,0.00025092,2]
[400238653,1767211842755,-20617.4852118,0.00025195,2]
[400238654,1767211842764,-510.3,0.00025205,2]
[400238655,1767211842773,-1121.27,0.00025205,2]
[400238656,1767211842783,-1242.62678619,0.00025205,2]
[400238657,1767211842791,-1245.76,0.00025205,2]
[400238658,1767211842800,-500.0,0.00025205,2]
[400238659,1767211842810,-620.58,0.00025205,2]
[400238660,1767211842820,-500.0,0.00025205,2]
[400238661,1767211842829,-500.0,0.00025205,2]
[400238662,1767211842838,-5574.93,0.00025205,2]
[400238663,1767211842846,-647.1,0.00025205,2]
[400238664,1767211842856,-488.35200289,0.00025205,2]
[400238665,1767211842865,-500.0,0.00025205,2]
[400238666,1767211842874,-500.0,0.00025205,2]
[400238667,1767211842883,-1927.89,0.00025205,2]
[400238668,1767211842893,-500.0,0.00025205,2]
[400238669,1767211842902,-726.9,0.00025205,2]
[400238670,1767211842912,-584.15,0.00025205,2]
[400238671,1767211842921,-638.06,0.00025205,2]
[400238672,1767211842930,-500.0,0.00025205,2]
[400238673,1767211842939,-686.07,0.00025205,2]
[400238674,1767211842948,-1878.54,0.00025205,2]
[400238675,1767211842957,-151.50509152,0.00025205,2]
[400238676,1767211842967,-1080.36507781,0.00025329,2]
[400238677,1767211842976,-1264.96083111,0.00025368,2]
[400238678,1767211842985,-337.79,0.000254,2]
[400238679,1767211842994,-510.3,0.00025479,2]
[400238680,1767211843004,-1121.27,0.00025479,2]
[400238681,1767211843013,-1242.62678619,0.00025479,2]
[400238682,1767211843023,-1245.76,0.00025479,2]
[400238683,1767211843031,-500.0,0.00025479,2]
[400238684,1767211843041,-620.58,0.00025479,2]
[400238685,1767211843050,-500.0,0.00025479,2]
[400238686,1767211843059,-500.0,0.00025479,2]
[400238687,1767211843068,-5574.93,0.00025479,2]
[400238688,1767211843077,-647.1,0.00025479,2]
[400238689,1767211843086,-369.26572285,0.00025479,2]
[400238690,1767211843095,-500.0,0.00025479,2]